[Event "*** Titled Tuesday Blitz"]
[Site "Chess.com"]
[Date "2021.03.16"]
[Round "2"]
[White "iturrizaga"]
[Black "NateSolon"]
[Result "1-0"]
[WhiteElo "2845"]
[BlackElo "2560"]
[TimeControl "180+1"]
[EndTime "10:14:42 PDT"]
[Termination "iturrizaga won by resignation"]

1. c4 {[%clk 0:02:59.6]} 1... Nf6 {[%clk 0:02:57.7]} 2. g3 {[%clk 0:03:00]} 2...
e6 {[%clk 0:02:56]} 3. Bg2 {[%clk 0:03:00.9]} 3... d5 {[%clk 0:02:56]} 4. Nf3
{[%clk 0:03:00]} 4... Be7 {[%clk 0:02:54.6]} 5. O-O {[%clk 0:03:00.1]} 5... O-O
{[%clk 0:02:54.7]} 6. b3 {[%clk 0:03:00.5]} 6... b6 {[%clk 0:02:54.9]} 7. Bb2
{[%clk 0:03:00.3]} 7... c5 {[%clk 0:02:54.7]} 8. e3 {[%clk 0:03:00.8]} 8... Nc6
{[%clk 0:02:51.9]} 9. Qe2 {[%clk 0:03:01.4]} 9... Ba6 {[%clk 0:02:51.4]} 10. Rd1
{[%clk 0:03:01]} 10... Rc8 {[%clk 0:02:50.7]} 11. d3 {[%clk 0:03:00.5]} 11...
Qc7 {[%clk 0:02:50.7]} 12. Nc3 {[%clk 0:03:00.5]} 12... Rfd8 {[%clk 0:02:50.5]}
13. Rac1 {[%clk 0:03:01.2]} 13... Qb8 {[%clk 0:02:50.5]} 14. h3 {[%clk
0:02:59.4]} 14... Bb7 {[%clk 0:02:49.5]} 15. cxd5 {[%clk 0:02:58.7]} 15... Nxd5
{[%clk 0:02:40]} 16. Ne4 {[%clk 0:02:58.6]} 16... h6 {[%clk 0:02:33]} 17. d4
{[%clk 0:02:54.8]} 17... cxd4 {[%clk 0:02:30]} 18. Nxd4 {[%clk 0:02:55.7]} 18...
Nxd4 {[%clk 0:02:29.6]} 19. Bxd4 {[%clk 0:02:56.2]} 19... Ba3 {[%clk 0:02:21.3]}
20. Rxc8 {[%clk 0:02:55.7]} 20... Rxc8 {[%clk 0:02:22.2]} 21. Qg4 {[%clk
0:02:55.7]} 21... Bf8 {[%clk 0:02:19.1]} 22. Qh5 {[%clk 0:02:52.1]} 22... Rc2
{[%clk 0:02:12.3]} 23. g4 {[%clk 0:02:43.8]} 23... Rxa2 {[%clk 0:01:42.2]} 24.
g5 {[%clk 0:02:41.8]} 24... g6 {[%clk 0:01:42.5]} 25. Qh4 {[%clk 0:02:41.6]}
25... h5 {[%clk 0:01:41.2]} 26. Bf1 {[%clk 0:02:27.5]} 26... Bg7 {[%clk
0:01:26.1]} 27. Nf6+ {[%clk 0:02:23.1]} 27... Nxf6 {[%clk 0:01:20.3]} 28. Bxf6
{[%clk 0:02:13.1]} 28... Bxf6 {[%clk 0:01:12.9]} 29. gxf6 {[%clk 0:02:14]} 29...
Qc7 {[%clk 0:00:56.3]} 30. Qg5 {[%clk 0:02:07.8]} 30... Qc6 {[%clk 0:00:52.9]}
31. Rd8+ {[%clk 0:02:06.5]} 31... Kh7 {[%clk 0:00:51.7]} 32. Rh8+ {[%clk
0:02:07.4]} 1-0

[Event "*** Titled Tuesday Blitz"]
[Site "Chess.com"]
[Date "2021.03.16"]
[Round "2"]
[White "enriquebutti"]
[Black "Sokoloco"]
[Result "1-0"]
[WhiteElo "2191"]
[BlackElo "2420"]
[TimeControl "180+1"]
[EndTime "10:14:45 PDT"]
[Termination "enriquebutti won by resignation"]

1. d4 {[%clk 0:02:58.9]} 1... d6 {[%clk 0:02:56]} 2. e4 {[%clk 0:02:57.2]} 2...
g6 {[%clk 0:02:55.5]} 3. Nc3 {[%clk 0:02:56.4]} 3... Bg7 {[%clk 0:02:56.1]} 4.
Be3 {[%clk 0:02:55.9]} 4... a6 {[%clk 0:02:56.7]} 5. Qd2 {[%clk 0:02:52.8]} 5...
b5 {[%clk 0:02:57.3]} 6. f3 {[%clk 0:02:51.7]} 6... Bb7 {[%clk 0:02:57.8]} 7. h4
{[%clk 0:02:48.9]} 7... h5 {[%clk 0:02:56.6]} 8. Nh3 {[%clk 0:02:47.4]} 8... Nf6
{[%clk 0:02:55.1]} 9. Ng5 {[%clk 0:02:46.6]} 9... O-O {[%clk 0:02:55.3]} 10.
O-O-O {[%clk 0:02:39.4]} 10... Nbd7 {[%clk 0:02:49.9]} 11. f4 {[%clk 0:02:32.4]}
11... b4 {[%clk 0:02:48.3]} 12. Ne2 {[%clk 0:02:29.9]} 12... Nxe4 {[%clk
0:02:47.8]} 13. Qe1 {[%clk 0:02:23.5]} 13... Ndf6 {[%clk 0:02:44]} 14. Ng3
{[%clk 0:02:19.8]} 14... Nxg3 {[%clk 0:02:38.7]} 15. Qxg3 {[%clk 0:02:19]} 15...
a5 {[%clk 0:02:29.2]} 16. Bd3 {[%clk 0:02:18]} 16... Ng4 {[%clk 0:02:26.6]} 17.
f5 {[%clk 0:02:09.3]} 17... gxf5 {[%clk 0:02:06.7]} 18. Bxf5 {[%clk 0:02:06.2]}
18... b3 {[%clk 0:02:04.2]} 19. cxb3 {[%clk 0:01:45.2]} 19... a4 {[%clk
0:02:04.2]} 20. Bxg4 {[%clk 0:01:43.9]} 20... hxg4 {[%clk 0:01:58.5]} 21. Qxg4
{[%clk 0:01:43.6]} 21... axb3 {[%clk 0:01:56.8]} 22. Qf5 {[%clk 0:01:36.5]}
22... Be4 {[%clk 0:01:22.3]} 23. Qxe4 {[%clk 0:01:31.4]} 23... f5 {[%clk
0:01:18.1]} 24. Qe6+ {[%clk 0:01:26.6]} 24... Kh8 {[%clk 0:01:18.1]} 25. Qg6
{[%clk 0:01:22.4]} 1-0

[Event "*** Titled Tuesday Blitz"]
[Site "Chess.com"]
[Date "2021.03.16"]
[Round "2"]
[White "hermionegrangermagic"]
[Black "Onischuk_V"]
[Result "0-1"]
[WhiteElo "2550"]
[BlackElo "2837"]
[TimeControl "180+1"]
[EndTime "10:15:32 PDT"]
[Termination "Onischuk_V won by resignation"]

1. e4 {[%clk 0:03:00.9]} 1... d6 {[%clk 0:02:59.8]} 2. d4 {[%clk 0:02:56.3]}
2... Nf6 {[%clk 0:03:00.3]} 3. Nc3 {[%clk 0:02:56.4]} 3... g6 {[%clk 0:03:01]}
4. Bg5 {[%clk 0:02:56.7]} 4... Bg7 {[%clk 0:03:01.1]} 5. e5 {[%clk 0:02:37]}
5... Nfd7 {[%clk 0:03:00.7]} 6. f4 {[%clk 0:01:52.1]} 6... O-O {[%clk 0:02:59]}
7. Qd2 {[%clk 0:01:46.9]} 7... f6 {[%clk 0:02:44.9]} 8. Bh4 {[%clk 0:01:34.2]}
8... fxe5 {[%clk 0:02:36.9]} 9. dxe5 {[%clk 0:01:27.2]} 9... dxe5 {[%clk
0:02:34.1]} 10. Nd5 {[%clk 0:01:11.1]} 10... Nc6 {[%clk 0:02:29.7]} 11. Bc4
{[%clk 0:00:42.8]} 11... Kh8 {[%clk 0:02:27.2]} 12. Nf3 {[%clk 0:00:27.1]} 12...
Nb6 {[%clk 0:02:20.6]} 13. Bb3 {[%clk 0:00:25.9]} 13... Nxd5 {[%clk 0:02:09.5]}
14. Bxd5 {[%clk 0:00:25.8]} 14... Nd4 {[%clk 0:02:09.4]} 15. Be4 {[%clk
0:00:07.9]} 15... Rxf4 {[%clk 0:02:00]} 16. Ng5 {[%clk 0:00:04.8]} 16... h6
{[%clk 0:01:51.1]} 17. Bxg6 {[%clk 0:00:05]} 17... hxg5 {[%clk 0:01:50.7]} 18.
Bxg5 {[%clk 0:00:05.9]} 18... Qd6 {[%clk 0:01:45.4]} 19. Bxf4 {[%clk 0:00:04.3]}
19... Qxg6 {[%clk 0:01:45.1]} 20. Be3 {[%clk 0:00:03.7]} 20... Nxc2+ {[%clk
0:01:42.6]} 21. Ke2 {[%clk 0:00:03.5]} 21... Qxg2+ {[%clk 0:01:39.2]} 22. Bf2
{[%clk 0:00:03.4]} 22... Bg4+ {[%clk 0:01:38.1]} 23. Kd3 {[%clk 0:00:03.3]}
23... Rd8+ {[%clk 0:01:37.3]} 24. Kxc2 {[%clk 0:00:03.3]} 24... Rxd2+ {[%clk
0:01:36.9]} 25. Kxd2 {[%clk 0:00:04.2]} 0-1

[Event "*** Titled Tuesday Blitz"]
[Site "Chess.com"]
[Date "2021.03.16"]
[Round "2"]
[White "djano"]
[Black "anon132639"]
[Result "0-1"]
[WhiteElo "2495"]
[BlackElo "2751"]
[TimeControl "180+1"]
[EndTime "10:15:46 PDT"]
[Termination "anon132639 won by resignation"]

1. e4 {[%clk 0:03:00.9]} 1... c5 {[%clk 0:02:58.4]} 2. Nc3 {[%clk 0:03:00.5]}
2... e6 {[%clk 0:02:58]} 3. f4 {[%clk 0:02:58.7]} 3... Nc6 {[%clk 0:02:53.6]} 4.
Bb5 {[%clk 0:02:56.7]} 4... Nd4 {[%clk 0:02:53]} 5. Nf3 {[%clk 0:02:56.7]} 5...
Ne7 {[%clk 0:02:45.6]} 6. O-O {[%clk 0:02:54.1]} 6... Nec6 {[%clk 0:02:44.7]} 7.
Bc4 {[%clk 0:02:46.3]} 7... Be7 {[%clk 0:02:41.7]} 8. a3 {[%clk 0:02:44.5]} 8...
d6 {[%clk 0:02:39.8]} 9. d3 {[%clk 0:02:43.3]} 9... Rb8 {[%clk 0:02:38.6]} 10.
Nxd4 {[%clk 0:02:39.3]} 10... Nxd4 {[%clk 0:02:38.1]} 11. Ne2 {[%clk 0:02:39.5]}
11... Nxe2+ {[%clk 0:02:33.7]} 12. Qxe2 {[%clk 0:02:40.4]} 12... b5 {[%clk
0:02:34]} 13. Bb3 {[%clk 0:02:37.4]} 13... O-O {[%clk 0:02:30.7]} 14. f5 {[%clk
0:02:37.8]} 14... exf5 {[%clk 0:02:28.4]} 15. exf5 {[%clk 0:02:38.7]} 15... Bf6
{[%clk 0:02:28.6]} 16. Bd5 {[%clk 0:02:28.9]} 16... Bb7 {[%clk 0:02:24.5]} 17.
Qf3 {[%clk 0:02:29.1]} 17... Bxd5 {[%clk 0:02:12.9]} 18. Qxd5 {[%clk 0:02:30]}
18... Re8 {[%clk 0:02:09.7]} 19. c3 {[%clk 0:02:25.1]} 19... Re5 {[%clk
0:02:07.8]} 20. Qf3 {[%clk 0:02:22.8]} 20... Qd7 {[%clk 0:02:07.4]} 21. g4
{[%clk 0:02:17.1]} 21... Rbe8 {[%clk 0:01:57.6]} 22. Bf4 {[%clk 0:02:14.8]}
22... Re2 {[%clk 0:01:53.8]} 23. Rf2 {[%clk 0:02:14.9]} 23... Rxf2 {[%clk
0:01:50.5]} 24. Kxf2 {[%clk 0:02:08.9]} 24... Qe7 {[%clk 0:01:48.5]} 25. Rf1
{[%clk 0:01:56.7]} 25... a5 {[%clk 0:01:38.5]} 26. Bg3 {[%clk 0:01:49.4]} 26...
b4 {[%clk 0:01:27.7]} 27. axb4 {[%clk 0:01:50.3]} 27... axb4 {[%clk 0:01:27.2]}
28. cxb4 {[%clk 0:01:44.2]} 28... cxb4 {[%clk 0:01:26.9]} 29. b3 {[%clk
0:01:43.8]} 29... Qa7+ {[%clk 0:01:21.9]} 30. Kg2 {[%clk 0:01:43.8]} 30... Qa2+
{[%clk 0:01:15.2]} 31. Rf2 {[%clk 0:01:44.2]} 31... Qxb3 {[%clk 0:01:15.6]} 32.
Qc6 {[%clk 0:01:44.4]} 32... Rd8 {[%clk 0:01:08.9]} 33. Re2 {[%clk 0:01:44.7]}
33... h6 {[%clk 0:01:05]} 34. Re8+ {[%clk 0:01:42.1]} 34... Rxe8 {[%clk
0:01:04.8]} 35. Qxe8+ {[%clk 0:01:43]} 35... Kh7 {[%clk 0:01:05.7]} 36. h4
{[%clk 0:01:40.9]} 36... Qd5+ {[%clk 0:00:59.1]} 37. Kh2 {[%clk 0:01:37.7]}
37... b3 {[%clk 0:00:59]} 38. Qb8 {[%clk 0:01:32.5]} 38... b2 {[%clk 0:00:57.3]}
39. Bxd6 {[%clk 0:01:31.1]} 39... Qa2 {[%clk 0:00:51.6]} 40. Kh3 {[%clk
0:01:29.5]} 40... b1=Q {[%clk 0:00:51.2]} 0-1

[Event "*** Titled Tuesday Blitz"]
[Site "Chess.com"]
[Date "2021.03.16"]
[Round "2"]
[White "Grineva_Marianna"]
[Black "Sanyura"]
[Result "0-1"]
[WhiteElo "2261"]
[BlackElo "2640"]
[TimeControl "180+1"]
[EndTime "10:15:49 PDT"]
[Termination "Sanyura won by checkmate"]

1. e4 {[%clk 0:03:00.9]} 1... c5 {[%clk 0:02:59.3]} 2. Nf3 {[%clk 0:03:01.2]}
2... e6 {[%clk 0:02:59.7]} 3. d4 {[%clk 0:03:01.4]} 3... cxd4 {[%clk 0:03:00.6]}
4. Nxd4 {[%clk 0:03:01.5]} 4... Nf6 {[%clk 0:03:01.1]} 5. Nc3 {[%clk 0:03:01.6]}
5... Nc6 {[%clk 0:03:01.4]} 6. Nxc6 {[%clk 0:03:00.2]} 6... bxc6 {[%clk
0:03:02.1]} 7. e5 {[%clk 0:03:00.7]} 7... Nd5 {[%clk 0:03:02.1]} 8. Ne4 {[%clk
0:03:00.7]} 8... Qc7 {[%clk 0:03:02.5]} 9. f4 {[%clk 0:03:00.8]} 9... Qb6 {[%clk
0:03:02.4]} 10. c4 {[%clk 0:03:00.8]} 10... Bb4+ {[%clk 0:03:02.5]} 11. Ke2
{[%clk 0:02:59.4]} 11... f5 {[%clk 0:02:58.9]} 12. exf6 {[%clk 0:02:58.6]} 12...
Nxf6 {[%clk 0:02:58.7]} 13. Be3 {[%clk 0:02:59.1]} 13... Qd8 {[%clk 0:02:58]}
14. Nd6+ {[%clk 0:02:58.7]} 14... Bxd6 {[%clk 0:02:56.7]} 15. Qxd6 {[%clk
0:02:59.6]} 15... Bb7 {[%clk 0:02:53.5]} 16. Rd1 {[%clk 0:02:56.8]} 16... c5
{[%clk 0:02:53.1]} 17. Qxc5 {[%clk 0:02:55.5]} 17... Rc8 {[%clk 0:02:31.3]} 18.
Qxa7 {[%clk 0:02:50.6]} 18... Be4 {[%clk 0:02:27.3]} 19. Qa3 {[%clk 0:02:42.3]}
19... Rxc4 {[%clk 0:02:22.9]} 20. Rd2 {[%clk 0:02:33.8]} 20... Bc6 {[%clk
0:02:04.8]} 21. Kf2 {[%clk 0:02:25.5]} 21... Ne4+ {[%clk 0:02:04.4]} 22. Kg1
{[%clk 0:02:22]} 22... Nxd2 {[%clk 0:02:02.4]} 23. Bxd2 {[%clk 0:02:22.9]} 23...
Rc2 {[%clk 0:01:54.1]} 24. Be3 {[%clk 0:02:02.2]} 24... Qh4 {[%clk 0:01:39.6]}
25. Qb3 {[%clk 0:01:39.6]} 25... Be4 {[%clk 0:01:38.2]} 26. Qb4 {[%clk
0:01:22.3]} 26... Bd5 {[%clk 0:01:14.2]} 27. a4 {[%clk 0:01:01.5]} 27... Qg4
{[%clk 0:01:08.2]} 28. Bf2 {[%clk 0:00:57.2]} 28... Rc1 {[%clk 0:00:54.7]} 29.
h3 {[%clk 0:00:43.9]} 29... Qxg2# {[%clk 0:00:53.7]} 0-1

[Event "*** Titled Tuesday Blitz"]
[Site "Chess.com"]
[Date "2021.03.16"]
[Round "2"]
[White "Konavets"]
[Black "Legendinunknown"]
[Result "1-0"]
[WhiteElo "2945"]
[BlackElo "2609"]
[TimeControl "180+1"]
[EndTime "10:15:53 PDT"]
[Termination "Konavets won by checkmate"]

1. e4 {[%clk 0:03:00.9]} 1... e5 {[%clk 0:02:58.6]} 2. Nf3 {[%clk 0:03:00.4]}
2... Nc6 {[%clk 0:02:59.1]} 3. Bc4 {[%clk 0:03:00.8]} 3... Nf6 {[%clk
0:02:58.8]} 4. d3 {[%clk 0:02:58.3]} 4... Be7 {[%clk 0:02:58.7]} 5. a3 {[%clk
0:02:58]} 5... O-O {[%clk 0:02:58.5]} 6. b4 {[%clk 0:02:58.6]} 6... d6 {[%clk
0:02:58.7]} 7. Bb2 {[%clk 0:02:58.5]} 7... Be6 {[%clk 0:02:49.7]} 8. Nbd2 {[%clk
0:02:58.4]} 8... Qd7 {[%clk 0:02:49]} 9. O-O {[%clk 0:02:57.8]} 9... h6 {[%clk
0:02:48]} 10. Re1 {[%clk 0:02:55.6]} 10... Nh7 {[%clk 0:02:46.1]} 11. Nf1 {[%clk
0:02:52.7]} 11... Bxc4 {[%clk 0:02:44.8]} 12. dxc4 {[%clk 0:02:52]} 12... Qe6
{[%clk 0:02:32.3]} 13. Ne3 {[%clk 0:02:51.4]} 13... g6 {[%clk 0:02:28.6]} 14.
Nd5 {[%clk 0:02:51.3]} 14... Rac8 {[%clk 0:02:26.4]} 15. Qd2 {[%clk 0:02:45]}
15... Kg7 {[%clk 0:02:25.9]} 16. b5 {[%clk 0:02:42.2]} 16... Nb8 {[%clk
0:02:09.6]} 17. c5 {[%clk 0:02:42.5]} 17... Nd7 {[%clk 0:02:05.9]} 18. Nxe7
{[%clk 0:02:11.6]} 18... Qxe7 {[%clk 0:02:05.1]} 19. cxd6 {[%clk 0:02:12.3]}
19... cxd6 {[%clk 0:02:06]} 20. Rad1 {[%clk 0:02:12]} 20... Nb6 {[%clk
0:01:48.1]} 21. Qxd6 {[%clk 0:02:04.1]} 21... Qxd6 {[%clk 0:01:46.9]} 22. Rxd6
{[%clk 0:02:05]} 22... Nc4 {[%clk 0:01:44.4]} 23. Bxe5+ {[%clk 0:02:05.6]} 23...
Nxe5 {[%clk 0:01:44]} 24. Nxe5 {[%clk 0:02:06.5]} 24... Rfe8 {[%clk 0:01:44.4]}
25. f4 {[%clk 0:02:04]} 25... Nf6 {[%clk 0:01:28.6]} 26. c4 {[%clk 0:02:03.2]}
26... g5 {[%clk 0:01:23.8]} 27. g3 {[%clk 0:02:03.1]} 27... Rcd8 {[%clk
0:01:20.4]} 28. Red1 {[%clk 0:01:58.1]} 28... Rxd6 {[%clk 0:01:18.9]} 29. Rxd6
{[%clk 0:01:59]} 29... gxf4 {[%clk 0:01:19.6]} 30. gxf4 {[%clk 0:01:58.9]} 30...
Nxe4 {[%clk 0:01:16.9]} 31. Rd7 {[%clk 0:01:58.7]} 31... Nc5 {[%clk 0:01:09.6]}
32. Rxf7+ {[%clk 0:01:57.9]} 32... Kg8 {[%clk 0:01:09.3]} 33. Rc7 {[%clk
0:01:58.8]} 33... b6 {[%clk 0:01:06.7]} 34. Rxa7 {[%clk 0:01:58.6]} 34... Rf8
{[%clk 0:01:06.6]} 35. Nd7 {[%clk 0:01:58]} 35... Nxd7 {[%clk 0:01:01.8]} 36.
Rxd7 {[%clk 0:01:58.9]} 36... Rxf4 {[%clk 0:01:02.5]} 37. c5 {[%clk 0:01:59.5]}
37... Rf5 {[%clk 0:00:32.2]} 38. cxb6 {[%clk 0:01:59.1]} 38... Rxb5 {[%clk
0:00:32]} 39. b7 {[%clk 0:01:59.7]} 39... Kf8 {[%clk 0:00:32.9]} 40. Rc7 {[%clk
0:01:59.8]} 40... Ke8 {[%clk 0:00:32.7]} 41. Rc8+ {[%clk 0:02:00.1]} 41... Kd7
{[%clk 0:00:33.6]} 42. b8=Q {[%clk 0:02:01]} 42... Rg5+ {[%clk 0:00:34.2]} 43.
Kf2 {[%clk 0:02:00.8]} 43... Rf5+ {[%clk 0:00:34.7]} 44. Ke3 {[%clk 0:02:01.3]}
44... Re5+ {[%clk 0:00:35]} 45. Qxe5 {[%clk 0:02:01.5]} 45... Kxc8 {[%clk
0:00:35.9]} 46. Qe7 {[%clk 0:02:02]} 46... Kb8 {[%clk 0:00:36]} 47. Kd4 {[%clk
0:02:02.9]} 47... Ka8 {[%clk 0:00:36.9]} 48. Kc5 {[%clk 0:02:03.8]} 48... Kb8
{[%clk 0:00:37.6]} 49. Kb6 {[%clk 0:02:04.7]} 49... Kc8 {[%clk 0:00:38.4]} 50.
Qf8+ {[%clk 0:02:05.6]} 50... Kd7 {[%clk 0:00:37.6]} 51. Qxh6 {[%clk 0:02:06.5]}
51... Ke7 {[%clk 0:00:38.2]} 52. a4 {[%clk 0:02:07.4]} 52... Kf7 {[%clk
0:00:39]} 53. a5 {[%clk 0:02:08.3]} 53... Kg8 {[%clk 0:00:39.6]} 54. a6 {[%clk
0:02:09.2]} 54... Kf7 {[%clk 0:00:40.3]} 55. a7 {[%clk 0:02:09.7]} 55... Ke7
{[%clk 0:00:41.2]} 56. a8=Q {[%clk 0:02:08.6]} 56... Kd7 {[%clk 0:00:42.1]} 57.
Qac6+ {[%clk 0:02:08.4]} 57... Ke7 {[%clk 0:00:43]} 58. Qhf6# {[%clk 0:02:08.8]}
1-0

[Event "*** Titled Tuesday Blitz"]
[Site "Chess.com"]
[Date "2021.03.16"]
[Round "2"]
[White "Gabix_94"]
[Black "Ermito2020"]
[Result "1-0"]
[WhiteElo "2805"]
[BlackElo "2523"]
[TimeControl "180+1"]
[EndTime "10:15:55 PDT"]
[Termination "Gabix_94 won by resignation"]

1. e4 {[%clk 0:03:00.9]} 1... c5 {[%clk 0:02:58.7]} 2. Nf3 {[%clk 0:03:00.7]}
2... d6 {[%clk 0:02:59.6]} 3. d4 {[%clk 0:03:00.6]} 3... cxd4 {[%clk 0:03:00.5]}
4. Nxd4 {[%clk 0:02:59.8]} 4... Nf6 {[%clk 0:03:00.9]} 5. Nc3 {[%clk 0:03:00.4]}
5... Nc6 {[%clk 0:03:01.4]} 6. Nd5 {[%clk 0:02:53.2]} 6... e6 {[%clk 0:02:55.8]}
7. Nxf6+ {[%clk 0:02:52.1]} 7... Qxf6 {[%clk 0:02:55.3]} 8. Nb5 {[%clk
0:02:51.1]} 8... Qd8 {[%clk 0:02:54.6]} 9. Bf4 {[%clk 0:02:47]} 9... e5 {[%clk
0:02:54.3]} 10. Be3 {[%clk 0:02:47.4]} 10... Be7 {[%clk 0:02:51.4]} 11. Be2
{[%clk 0:02:44.4]} 11... a6 {[%clk 0:02:49.6]} 12. Nc3 {[%clk 0:02:43.4]} 12...
Bg5 {[%clk 0:02:48]} 13. Bxg5 {[%clk 0:02:38.5]} 13... Qxg5 {[%clk 0:02:48.9]}
14. Qxd6 {[%clk 0:02:38.2]} 14... Nd4 {[%clk 0:02:35.4]} 15. Nd5 {[%clk
0:02:16.2]} 15... f6 {[%clk 0:02:15.5]} 16. Bc4 {[%clk 0:02:10.1]} 16... Kf7
{[%clk 0:01:47.8]} 17. Nf4+ {[%clk 0:01:52.2]} 17... Ke8 {[%clk 0:01:44.2]} 18.
Nd5 {[%clk 0:01:46.6]} 18... Kf7 {[%clk 0:01:44]} 19. f4 {[%clk 0:01:43.8]}
19... Nxc2+ {[%clk 0:00:59.7]} 20. Kf2 {[%clk 0:01:37.8]} 20... exf4 {[%clk
0:00:54.1]} 21. Nxf4+ {[%clk 0:01:24.7]} 21... Ke8 {[%clk 0:00:53.8]} 22. Rad1
{[%clk 0:01:19.5]} 22... Bg4 {[%clk 0:00:53.6]} 23. Rd5 {[%clk 0:01:12.6]} 23...
Qh6 {[%clk 0:00:39.9]} 24. h3 {[%clk 0:01:02]} 24... Rc8 {[%clk 0:00:36]} 25.
hxg4 {[%clk 0:01:00.7]} 25... Qxh1 {[%clk 0:00:35.7]} 26. Qe6+ {[%clk
0:01:01.1]} 26... Kf8 {[%clk 0:00:35.7]} 27. Qxc8+ {[%clk 0:01:00]} 27... Kf7
{[%clk 0:00:35.9]} 28. Qe6+ {[%clk 0:01:00.5]} 1-0

[Event "*** Titled Tuesday Blitz"]
[Site "Chess.com"]
[Date "2021.03.16"]
[Round "2"]
[White "Buffy7"]
[Black "Piacramling"]
[Result "1-0"]
[WhiteElo "2633"]
[BlackElo "2352"]
[TimeControl "180+1"]
[EndTime "10:16:03 PDT"]
[Termination "Buffy7 won on time"]

1. e4 {[%clk 0:02:38.4]} 1... c5 {[%clk 0:02:58.1]} 2. Nf3 {[%clk 0:02:38.5]}
2... e6 {[%clk 0:02:56.8]} 3. d4 {[%clk 0:02:38.5]} 3... cxd4 {[%clk 0:02:56.1]}
4. Nxd4 {[%clk 0:02:39.4]} 4... Nc6 {[%clk 0:02:56]} 5. Nc3 {[%clk 0:02:39.9]}
5... Nf6 {[%clk 0:02:55.8]} 6. Nxc6 {[%clk 0:02:39.2]} 6... bxc6 {[%clk
0:02:55]} 7. e5 {[%clk 0:02:39.7]} 7... Nd5 {[%clk 0:02:54.5]} 8. Ne4 {[%clk
0:02:40.1]} 8... Qc7 {[%clk 0:02:50.9]} 9. f4 {[%clk 0:02:40.2]} 9... Qb6 {[%clk
0:02:46.6]} 10. c4 {[%clk 0:02:39.5]} 10... f5 {[%clk 0:02:11.4]} 11. Ng5 {[%clk
0:02:10]} 11... Ne3 {[%clk 0:01:42.4]} 12. Qd3 {[%clk 0:02:08.3]} 12... Bb4+
{[%clk 0:01:11]} 13. Ke2 {[%clk 0:02:05.9]} 13... Ng4 {[%clk 0:00:56.6]} 14. Be3
{[%clk 0:01:38.8]} 14... Nxe3 {[%clk 0:00:52.3]} 15. Qxe3 {[%clk 0:01:39.7]}
15... Bc5 {[%clk 0:00:36.1]} 16. Qd2 {[%clk 0:01:27.9]} 16... Ba6 {[%clk
0:00:32.6]} 17. b3 {[%clk 0:01:27.3]} 17... Rd8 {[%clk 0:00:19.5]} 18. Rd1
{[%clk 0:01:25.2]} 18... O-O {[%clk 0:00:16.9]} 19. g3 {[%clk 0:01:13.4]} 19...
Be7 {[%clk 0:00:05.4]} 20. h4 {[%clk 0:01:08]} 20... c5 {[%clk 0:00:03.9]} 21.
Bg2 {[%clk 0:01:07.4]} 21... d6 {[%clk 0:00:02.6]} 22. Nxe6 {[%clk 0:01:05.8]}
1-0

[Event "*** Titled Tuesday Blitz"]
[Site "Chess.com"]
[Date "2021.03.16"]
[Round "2"]
[White "guillembaches"]
[Black "KafkaesqueKnight"]
[Result "1-0"]
[WhiteElo "2475"]
[BlackElo "2230"]
[TimeControl "180+1"]
[EndTime "10:16:03 PDT"]
[Termination "guillembaches won on time"]

1. e4 {[%clk 0:03:00.9]} 1... c5 {[%clk 0:02:59.5]} 2. Nf3 {[%clk 0:03:01.1]}
2... d6 {[%clk 0:02:59.5]} 3. d4 {[%clk 0:03:01.4]} 3... cxd4 {[%clk 0:03:00.4]}
4. Qxd4 {[%clk 0:03:01.7]} 4... a6 {[%clk 0:02:57.4]} 5. c4 {[%clk 0:03:01.1]}
5... Nc6 {[%clk 0:02:56.4]} 6. Qe3 {[%clk 0:03:01.5]} 6... Nf6 {[%clk
0:02:52.8]} 7. h3 {[%clk 0:03:01]} 7... g6 {[%clk 0:02:49.6]} 8. Be2 {[%clk
0:03:00.9]} 8... Bg7 {[%clk 0:02:47.9]} 9. O-O {[%clk 0:03:01.3]} 9... O-O
{[%clk 0:02:47.8]} 10. Nc3 {[%clk 0:03:01.6]} 10... Rb8 {[%clk 0:02:41.1]} 11.
Rd1 {[%clk 0:02:59.2]} 11... Qa5 {[%clk 0:02:38.2]} 12. Bd2 {[%clk 0:02:58.8]}
12... Qc5 {[%clk 0:02:32.9]} 13. Qxc5 {[%clk 0:02:40.8]} 13... dxc5 {[%clk
0:02:33.8]} 14. Bf4 {[%clk 0:02:39]} 14... Ra8 {[%clk 0:02:27]} 15. e5 {[%clk
0:02:36.7]} 15... Nh5 {[%clk 0:01:56.5]} 16. Bh2 {[%clk 0:02:30.2]} 16... Bh6
{[%clk 0:01:53.4]} 17. Nd5 {[%clk 0:02:23.4]} 17... e6 {[%clk 0:01:41.1]} 18.
Nf6+ {[%clk 0:02:16.5]} 18... Nxf6 {[%clk 0:01:32.7]} 19. exf6 {[%clk
0:02:17.4]} 19... b6 {[%clk 0:01:00]} 20. Bc7 {[%clk 0:01:54.8]} 20... b5 {[%clk
0:00:36.5]} 21. cxb5 {[%clk 0:01:49.1]} 21... axb5 {[%clk 0:00:36.6]} 22. Bxb5
{[%clk 0:01:49.1]} 22... Nb4 {[%clk 0:00:35.6]} 23. Bd6 {[%clk 0:01:41.6]} 23...
Rd8 {[%clk 0:00:12.8]} 24. Bxc5 {[%clk 0:01:36.6]} 24... Rxd1+ {[%clk
0:00:12.8]} 25. Rxd1 {[%clk 0:01:36.4]} 25... Nd5 {[%clk 0:00:10.1]} 26. Bc6
{[%clk 0:01:25]} 26... Rxa2 {[%clk 0:00:03.3]} 27. Bxd5 {[%clk 0:01:25.2]} 27...
exd5 {[%clk 0:00:03]} 28. Rxd5 {[%clk 0:01:25]} 1-0